fUSD/lending_fUSD_20240412
["ID","MTS","AMOUNT","RATE_DAILY","PERIOD"]
[322348925,1712957476942,-500.0,0.00048767,31]
[322348926,1712957476952,-151.0,0.00048767,14]
[322348927,1712957476961,-649.25,0.00048767,31]
[322348928,1712957476971,-151.0,0.00048767,14]
[322348929,1712957476980,-151.0,0.00048767,14]
[322348930,1712957476990,-1428.8,0.00048767,31]
[322348931,1712957476999,-701.3,0.00048767,31]
[322348932,1712957477008,-151.0,0.00048767,14]
[322348933,1712957477017,-1707.62,0.00048767,21]
[322348934,1712957477026,-500.0,0.00048767,31]
[322348935,1712957477035,-500.0,0.00048767,31]
[322348936,1712957477044,-151.0,0.00048767,14]
[322348937,1712957477054,-151.0,0.00048767,7]
[322348938,1712957477065,-2220.22,0.00048767,31]
[322348939,1712957477074,-500.0,0.00048767,31]
[322348940,1712957477084,-500.0,0.00048767,31]
[322348941,1712957477093,-2569.48,0.00048767,31]
[322348942,1712957477103,-151.0,0.00048767,14]
[322348943,1712957477112,-1323.83,0.00048767,31]
[322348944,1712957477122,-576.61,0.00048767,31]
[322348945,1712957477131,-667.54,0.00048767,31]
[322348946,1712957477141,-528.73,0.00048767,31]
[322348947,1712957477151,-1075.46,0.00048767,31]
[322348948,1712957477162,-151.0,0.00048767,14]
[322348949,1712957477171,-500.0,0.00048767,31]
[322348950,1712957477181,-661.11,0.00048767,31]
[322348951,1712957477191,-500.0,0.00048767,31]
[322348952,1712957477200,-622.4,0.00048767,31]
[322348953,1712957477210,-500.0,0.00048767,31]
[322348954,1712957477218,-1849.96,0.00048767,31]
[322348955,1712957477228,-568.2,0.00048767,31]
[322348956,1712957477238,-1187.59,0.00048767,31]
[322348957,1712957477247,-500.0,0.00048767,31]
[322348958,1712957477258,-612.21,0.00048767,31]
[322348959,1712957477268,-500.0,0.00048767,31]
[322348960,1712957477278,-771.23,0.00048767,31]
[322348961,1712957477288,-500.0,0.00048767,31]
[322348962,1712957477298,-1000.0,0.00048767,31]
[322348963,1712957477308,-500.0,0.00048767,31]
[322348964,1712957477319,-1058.3,0.00048767,31]
[322348965,1712957477328,-500.0,0.00048767,31]
[322348966,1712957477338,-810.03,0.00048767,31]
[322348967,1712957477347,-500.0,0.00048767,31]
[322348968,1712957477357,-500.0,0.00048767,31]
[322348969,1712957477368,-1217.51,0.00048767,31]
[322348970,1712957477377,-500.0,0.00048767,31]
[322348971,1712957477389,-500.0,0.00048767,31]
[322348972,1712957477399,-1110.81,0.00048767,31]
[322348973,1712957477409,-1069.94,0.00048767,31]
[322348974,1712957477418,-716.23,0.00048767,31]
[322348975,1712957477427,-611.44,0.00048767,31]
[322348976,1712957477437,-1314.87,0.00048767,31]
[322348977,1712957477447,-2386.04,0.00048767,31]
[322348978,1712957477457,-756.86,0.00048767,31]
[322348979,1712957477467,-1550.59,0.00048767,31]
[322348980,1712957477477,-734.62,0.00048767,31]
[322348981,1712957477486,-500.0,0.00048767,31]
[322348982,1712957477495,-500.0,0.00048767,31]
[322348983,1712957477504,-500.0,0.00048767,31]
[322348984,1712957477514,-1111.77,0.00048767,31]
[322348985,1712957477523,-759.91,0.00048767,31]
[322348986,1712957477533,-500.0,0.00048767,31]
[322348987,1712957477542,-646.49,0.00048767,31]
[322348988,1712957477551,-500.0,0.00048767,31]
[322348989,1712957477562,-6651.28,0.00048767,31]
[322348990,1712957477572,-515.55,0.00048767,31]
[322348991,1712957477581,-728.38,0.00048767,31]
[322348992,1712957477591,-802.85,0.00048767,31]
[322348993,1712957477600,-571.02,0.00048767,31]
[322348994,1712957477609,-2000.55,0.00048767,31]
[322348995,1712957477618,-566.71,0.00048767,31]
[322348996,1712957477628,-281.18432537,0.0004877,44]
[322348997,1712957477637,-153.55823555,0.00048784,71]
[322348998,1712957477647,-193.41558725,0.00048873,2]
[322348999,1712957477660,-6270.45245458,0.00048894,2]
[322349000,1712957477669,-158.56529912,0.00048944,30]
[322349001,1712957477679,-462.04,0.00048986,15]
[322349002,1712957477688,-950.0,0.00049,3]
[322349003,1712957477699,-150.0,0.00049,9]
[322349004,1712957477708,-155.91963568,0.00049015,30]
[322349005,1712957477717,-150.0,0.00049036,7]
[322349006,1712957477726,-434.04,0.00049041,31]
[322349007,1712957477736,-500.0,0.00049041,31]
[322349008,1712957477747,-500.0,0.00049041,31]
[322349009,1712957477756,-500.0,0.00049041,31]
[322349010,1712957477765,-500.0,0.00049041,31]
[322349011,1712957477774,-519.49424031,0.00049041,31]
[322349012,1712957477783,-163.34641919,0.00049041,31]
[322349013,1712957477793,-500.0,0.00049041,31]
[322349014,1712957477802,-500.0,0.00049041,31]
[322349015,1712957477812,-500.0,0.00049041,31]
[322349016,1712957477821,-500.0,0.00049041,31]
[322349017,1712957477831,-500.0,0.00049041,31]
[322349018,1712957477840,-500.0,0.00049041,31]
[322349019,1712957477850,-500.0,0.00049041,2]
[322349020,1712957477859,-500.0,0.00049041,31]
[322349021,1712957477868,-500.0,0.00049041,31]
[322349022,1712957477877,-500.0,0.00049041,31]
[322349023,1712957477887,-500.0,0.00049041,31]
[322349024,1712957477896,-500.0,0.00049041,31]
[322349025,1712957477905,-500.0,0.00049041,31]
[322349026,1712957477914,-500.0,0.00049041,31]
[322349027,1712957477923,-500.0,0.00049041,31]
[322349028,1712957477932,-500.0,0.00049041,31]
[322349029,1712957477942,-500.0,0.00049041,31]
[322349030,1712957477951,-500.0,0.00049041,31]
[322349031,1712957477960,-500.0,0.00049041,31]
[322349032,1712957477969,-500.0,0.00049041,31]
[322349033,1712957477980,-500.0,0.00049041,31]
[322349034,1712957477989,-500.0,0.00049041,31]
[322349035,1712957477999,-500.0,0.00049041,31]
[322349036,1712957478008,-500.0,0.00049041,31]
[322349037,1712957478017,-500.0,0.00049041,7]
[322349038,1712957478026,-500.0,0.00049041,31]
[322349039,1712957478035,-500.0,0.00049041,31]
[322349040,1712957478045,-500.0,0.00049041,31]
[322349041,1712957478054,-462.92,0.00049041,31]
[322349042,1712957478063,-500.0,0.00049041,31]
[322349043,1712957478073,-500.0,0.00049041,31]
[322349044,1712957478082,-525.02,0.00049041,31]
[322349045,1712957478091,-500.0,0.00049041,31]
[322349046,1712957478101,-500.0,0.00049041,31]
[322349047,1712957478161,-500.0,0.00049041,31]
[322349048,1712957478171,-500.0,0.00049041,31]
[322349049,1712957478180,-500.0,0.00049041,31]
[322349050,1712957478189,-500.0,0.00049041,31]
[322349051,1712957478198,-567.14,0.00049041,31]
[322349052,1712957478207,-500.0,0.00049041,31]
[322349053,1712957478216,-500.0,0.00049041,31]
[322349054,1712957478226,-500.0,0.00049041,31]
[322349055,1712957478235,-500.0,0.00049041,31]
[322349056,1712957478245,-151.0,0.00049041,14]
[322349057,1712957478254,-151.0,0.00049041,14]
[322349058,1712957478263,-151.0,0.00049041,14]
[322349059,1712957478273,-151.0,0.00049041,14]
[322349060,1712957478282,-151.0,0.00049041,14]
[322349061,1712957478291,-500.0,0.00049041,31]
[322349062,1712957478300,-151.0,0.00049041,14]
[322349063,1712957478308,-151.0,0.00049041,14]
[322349064,1712957478320,-187.808836,0.00049041,14]
[322349065,1712957478329,-151.0,0.00049041,14]
[322349066,1712957478338,-151.0,0.00049041,14]
[322349067,1712957478346,-500.0,0.00049041,31]
[322349068,1712957478355,-500.0,0.00049041,31]
[322349069,1712957478365,-151.0,0.00049041,14]
[322349070,1712957478374,-500.0,0.00049041,31]
[322349071,1712957478383,-150.0,0.00049041,31]
[322349072,1712957478393,-500.0,0.00049041,31]
[322349073,1712957478402,-500.0,0.00049041,31]
[322349074,1712957478412,-500.0,0.00049041,31]
[322349075,1712957478422,-669.77,0.00049041,31]
[322349076,1712957478432,-500.0,0.00049041,31]
[322349077,1712957478442,-500.0,0.00049041,31]
[322349078,1712957478452,-500.0,0.00049041,31]
[322349079,1712957478461,-500.0,0.00049041,31]
[322349080,1712957478470,-614.6589865,0.00049041,31]
[322349081,1712957478479,-500.0,0.00049041,31]
[322349082,1712957478489,-680.37,0.00049041,31]
[322349083,1712957478498,-500.0,0.00049041,31]
[322349084,1712957478507,-3763.83,0.00049041,31]
[322349085,1712957478517,-500.0,0.00049041,31]
[322349086,1712957478527,-500.0,0.00049041,31]
[322349087,1712957478537,-500.0,0.00049041,31]
[322349088,1712957478547,-500.0,0.00049041,31]
[322349089,1712957478556,-500.0,0.00049041,31]
[322349090,1712957478567,-784.68,0.00049041,31]
[322349091,1712957478577,-392.81978776,0.00049041,31]
[322349092,1712957478586,-993.51,0.00049041,31]
[322349093,1712957478597,-500.0,0.00049041,31]
[322349094,1712957478606,-500.0,0.00049041,31]
[322349095,1712957478616,-500.0,0.00049041,31]
[322349096,1712957478625,-500.0,0.00049041,31]
[322349097,1712957478635,-7701.29,0.00049041,31]
[322349098,1712957478644,-500.0,0.00049041,31]
[322349099,1712957478654,-743.53,0.00049041,31]
[322349100,1712957478666,-663.59,0.00049041,31]
[322349101,1712957478676,-500.0,0.00049041,31]
[322349102,1712957478687,-500.0,0.00049041,31]
[322349103,1712957478697,-765.19,0.00049041,31]
[322349104,1712957478707,-1210.95,0.00049041,31]
[322349105,1712957478717,-1215.79,0.00049041,31]
[322349106,1712957478727,-2444.29,0.00049041,31]
[322349107,1712957478739,-500.0,0.00049041,31]
[322349108,1712957478749,-782.13,0.00049041,31]
[322349109,1712957478759,-862.16,0.00049041,31]
[322349110,1712957478768,-198.55755882,0.00049041,7]
[322349111,1712957478777,-639.92,0.00049041,31]
[322349112,1712957478787,-500.0,0.00049041,31]
[322349113,1712957478797,-500.0,0.00049041,31]
[322349114,1712957478806,-517.0,0.00049041,31]
[322349115,1712957478816,-552.86,0.00049041,31]
[322349116,1712957478826,-3415.58,0.00049041,31]
[322349117,1712957478835,-500.0,0.00049041,31]
[322349118,1712957478845,-260.14,0.00049041,31]
[322349119,1712957478855,-500.0,0.00049041,31]
[322349120,1712957478864,-888.25,0.00049041,31]
[322349121,1712957478874,-622.98,0.00049041,31]
[322349122,1712957478883,-7197.97,0.00049041,31]
[322349123,1712957478893,-973.32,0.00049041,31]
[322349124,1712957478903,-1090.18,0.00049041,31]
[322349125,1712957478913,-613.64,0.00049041,31]
[322349126,1712957478922,-893.69,0.00049041,31]
[322349127,1712957478931,-508.05,0.00049041,31]
[322349128,1712957478940,-500.0,0.00049041,31]
[322349129,1712957478950,-658.26,0.00049041,31]
[322349130,1712957478959,-704.21,0.00049041,31]
[322349131,1712957478969,-896.94,0.00049041,31]
[322349132,1712957478979,-420.19243688,0.00049041,31]
[322349133,1712957478988,-2564.38,0.00049041,31]
[322349134,1712957478998,-500.0,0.00049041,31]
[322349135,1712957479008,-649.25,0.00049041,31]
[322349136,1712957479017,-1428.8,0.00049041,31]
[322349137,1712957479026,-701.3,0.00049041,31]
[322349138,1712957479036,-1707.62,0.00049041,21]
[322349139,1712957479045,-500.0,0.00049041,31]
[322349140,1712957479054,-532.32902167,0.00049041,31]
[322349141,1712957479066,-2220.22,0.00049041,31]
[322349142,1712957479075,-500.0,0.00049041,31]
[322349143,1712957479084,-500.0,0.00049041,31]
[322349144,1712957479093,-2569.48,0.00049041,31]
[322349145,1712957479103,-1323.83,0.00049041,31]
[322349146,1712957479112,-576.61,0.00049041,31]
[322349147,1712957479122,-667.54,0.00049041,31]
[322349148,1712957479131,-528.73,0.00049041,31]
[322349149,1712957479140,-1075.46,0.00049041,31]
[322349150,1712957479149,-500.0,0.00049041,31]
[322349151,1712957479159,-661.11,0.00049041,31]
[322349152,1712957479169,-500.0,0.00049041,31]
[322349153,1712957479179,-622.4,0.00049041,31]
[322349154,1712957479189,-151.0,0.00049041,14]
[322349155,1712957479198,-500.0,0.00049041,31]
[322349156,1712957479207,-1849.96,0.00049041,31]
[322349157,1712957479216,-151.0,0.00049041,14]
[322349158,1712957479226,-568.2,0.00049041,31]
[322349159,1712957479237,-1187.59,0.00049041,31]
[322349160,1712957479247,-500.0,0.00049041,31]
[322349161,1712957479257,-612.21,0.00049041,31]
[322349162,1712957479267,-500.0,0.00049041,31]
[322349163,1712957479276,-151.0,0.00049041,14]
[322349164,1712957479286,-771.23,0.00049041,31]
[322349165,1712957479295,-151.0,0.00049041,14]
[322349166,1712957479305,-234.8938458,0.00049041,31]
[322349167,1712957479314,-151.0,0.00049041,14]
[322349168,1712957479324,-1000.0,0.00049041,31]
[322349169,1712957479333,-500.0,0.00049041,31]
[322349170,1712957479342,-1058.3,0.00049041,31]
[322349171,1712957479351,-500.0,0.00049041,31]
[322349172,1712957479361,-151.0,0.00049041,2]
[322349173,1712957479370,-810.03,0.00049041,31]
[322349174,1712957479379,-151.0,0.00049041,14]
[322349175,1712957479388,-151.0,0.00049041,14]
[322349176,1712957479397,-151.0,0.00049041,14]
[322349177,1712957479406,-500.0,0.00049041,31]
[322349178,1712957479415,-500.0,0.00049041,31]
[322349179,1712957479425,-1217.51,0.00049041,31]
[322349180,1712957479433,-151.0,0.00049041,14]
[322349181,1712957479443,-500.0,0.00049041,31]
[322349182,1712957479452,-500.0,0.00049041,31]
[322349183,1712957479462,-1110.81,0.00049041,31]
[322349184,1712957479471,-1069.94,0.00049041,31]
[322349185,1712957479480,-716.23,0.00049041,31]
[322349186,1712957479490,-207.133645,0.00049041,14]
[322349187,1712957479499,-151.0,0.00049041,14]
[322349188,1712957479508,-207.133645,0.00049041,14]
[322349189,1712957479518,-1314.87,0.00049041,31]
[322349190,1712957479527,-2386.04,0.00049041,31]
[322349191,1712957479537,-756.86,0.00049041,31]
[322349192,1712957479546,-1550.59,0.00049041,31]
[322349193,1712957479555,-734.62,0.00049041,31]
[322349194,1712957479564,-500.0,0.00049041,31]
[322349195,1712957479574,-500.0,0.00049041,31]
[322349196,1712957479583,-500.0,0.00049041,31]
[322349197,1712957479593,-151.0,0.00049041,14]
[322349198,1712957479602,-1111.77,0.00049041,31]
[322349199,1712957479611,-759.91,0.00049041,31]
[322349200,1712957479620,-151.0,0.00049041,14]
[322349201,1712957479629,-582.46328678,0.00049041,31]
[322349202,1712957479638,-646.49,0.00049041,31]
[322349203,1712957479647,-631.10106407,0.00049041,31]
[322349204,1712957479660,-6651.28,0.00049041,31]
[322349205,1712957479669,-515.55,0.00049041,31]
[322349206,1712957479678,-728.38,0.00049041,31]
[322349207,1712957479688,-802.85,0.00049041,31]
[322349208,1712957479697,-571.02,0.00049041,31]
[322349209,1712957479708,-2000.55,0.00049041,31]
[322349210,1712957479717,-566.71,0.00049041,31]
[322349211,1712957479727,-1851.765198,0.00049041,14]
[322349212,1712957479737,-1851.765198,0.00049041,14]
[322349213,1712957479747,-152.58356762,0.00049056,30]
[322349214,1712957479757,-150.0,0.00049061,7]
[322349215,1712957479766,-150.0,0.00049061,7]
[322349216,1712957479775,-150.0,0.0004907,7]
[322349217,1712957479785,-3296.21113325,0.0004907,25]
[322349218,1712957479795,-291.9,0.000491,7]
[322349219,1712957479805,-150.0,0.00049114,7]
[322349220,1712957479814,-281.18432537,0.00049147,45]
[322349221,1712957479823,-150.0,0.00049153,7]
[322349222,1712957479832,-150.0,0.00049196,7]
[322349223,1712957479842,-500.0,0.00049197,30]
[322349224,1712957479851,-150.0,0.00049198,7]
[322349225,1712957479861,-489.54,0.000492,7]
[322349226,1712957479870,-150.0,0.0004921,7]
[322349227,1712957479879,-151.0,0.00049215,14]
[322349228,1712957479888,-161.843637,0.00049215,14]
[322349229,1712957479897,-151.0,0.00049215,14]
[322349230,1712957479906,-151.0,0.00049215,14]
[322349231,1712957479916,-151.0,0.00049215,14]
[322349232,1712957479926,-151.0,0.00049215,14]
[322349233,1712957479935,-151.0,0.00049215,14]
[322349234,1712957479944,-151.0,0.00049215,14]
[322349235,1712957479953,-152.583272,0.00049215,14]
[322349236,1712957479962,-98213.81380295,0.00049215,2]
[322349237,1712957480142,-500.0,0.00046575,31]
[322349238,1712957480151,-36606.62709705,0.00049215,2]
[322349239,1712957480161,-1000.0,0.00049215,2]
[322349240,1712957480171,-7936.0708,0.00049215,2]
[322349241,1712957480180,-150.0,0.00049255,7]
[322349242,1712957480189,-150.0,0.00049262,7]
[322349243,1712957480199,-157.17590103,0.00049265,30]
[322349244,1712957480209,-150.0,0.00049266,7]
[322349245,1712957480218,-150.0,0.00049283,7]
[322349246,1712957480228,-153.55823556,0.00049284,73]
[322349247,1712957480237,-150.0,0.00049293,7]
[322349248,1712957480247,-150.0,0.00049305,7]
[322349249,1712957480256,-200.0,0.00049315,7]
[322349250,1712957480265,-500.0,0.00049315,120]
[322349251,1712957480274,-500.0,0.00049315,120]
[322349252,1712957480283,-500.0,0.00049315,120]
[322349253,1712957480294,-500.0,0.00049315,120]
[322349254,1712957480302,-507.04411757,0.00049315,2]
[322349255,1712957480312,-500.0,0.00049315,120]
[322349256,1712957480322,-500.0,0.00049315,120]
[322349257,1712957480332,-172.76982739,0.00049315,120]
[322349258,1712957480341,-469.60969125,0.00049315,120]
[322349259,1712957480351,-500.0,0.00049315,120]
[322349260,1712957480360,-500.0,0.00049315,120]
[322349261,1712957480370,-500.0,0.00049315,2]
[322349262,1712957480379,-500.0,0.00049315,120]
[322349263,1712957480388,-184.39,0.00049315,120]
[322349264,1712957480397,-500.0,0.00049315,120]
[322349265,1712957480406,-500.0,0.00049315,120]
[322349266,1712957480416,-500.0,0.00049315,120]
[322349267,1712957480425,-500.0,0.00049315,120]
[322349268,1712957480434,-500.0,0.00049315,120]
[322349269,1712957480445,-500.0,0.00049315,120]
[322349270,1712957480454,-500.0,0.00049315,120]
[322349271,1712957480463,-500.0,0.00049315,120]
[322349272,1712957480473,-464.37,0.00049315,120]
[322349273,1712957480482,-500.0,0.00049315,120]
[322349274,1712957480492,-311.9578952,0.00049315,120]
[322349275,1712957480501,-500.0,0.00049315,120]
[322349276,1712957480511,-500.0,0.00049315,120]
[322349277,1712957480522,-500.0,0.00049315,120]
[322349278,1712957480531,-500.0,0.00049315,120]
[322349279,1712957480541,-500.0,0.00049315,7]
[322349280,1712957480551,-500.0,0.00049315,120]
[322349281,1712957480561,-500.0,0.00049315,120]
[322349282,1712957480572,-500.0,0.00049315,120]
[322349283,1712957480581,-500.0,0.00049315,120]
[322349284,1712957480590,-500.0,0.00049315,120]
[322349285,1712957480600,-620.2,0.00049315,120]
[322349286,1712957480610,-500.0,0.00049315,120]
[322349287,1712957480619,-500.0,0.00049315,120]
[322349288,1712957480629,-187.76,0.00049315,120]
[322349289,1712957480638,-500.0,0.00049315,120]
[322349290,1712957480647,-500.0,0.00049315,120]
[322349291,1712957480658,-567.14,0.00049315,120]
[322349292,1712957480668,-500.0,0.00049315,120]
[322349293,1712957480678,-500.0,0.00049315,120]
[322349294,1712957480688,-500.0,0.00049315,120]
[322349295,1712957480698,-500.0,0.00049315,120]
[322349296,1712957480709,-500.0,0.00049315,120]
[322349297,1712957480719,-500.0,0.00049315,120]
[322349298,1712957480729,-500.0,0.00049315,120]
[322349299,1712957480740,-500.0,0.00049315,120]
[322349300,1712957480751,-150.0,0.00049315,120]
[322349301,1712957480761,-500.0,0.00049315,120]
[322349302,1712957480770,-500.0,0.00049315,120]
[322349303,1712957480779,-231.18,0.00049315,120]
[322349304,1712957480789,-206.720845,0.00049315,14]
[322349305,1712957480800,-669.77,0.00049315,120]
[322349306,1712957480809,-500.0,0.00049315,120]
[322349307,1712957480820,-151.0,0.00049315,14]
[322349308,1712957480830,-199.032944,0.00049315,14]
[322349309,1712957480840,-199.032944,0.00049315,14]
[322349310,1712957480850,-500.0,0.00049315,120]
[322349311,1712957480860,-3000.0,0.00049315,120]
[322349312,1712957480870,-500.0,0.00049315,120]
[322349313,1712957480879,-500.0,0.00049315,120]
[322349314,1712957480889,-151.0,0.00049315,14]
[322349315,1712957480899,-500.0,0.00049315,120]
[322349316,1712957480909,-680.37,0.00049315,120]
[322349317,1712957480919,-500.0,0.00049315,120]
[322349318,1712957480929,-240.384444,0.00049315,14]
[322349319,1712957480939,-240.384444,0.00049315,14]
[322349320,1712957480949,-3763.83,0.00049315,120]
[322349321,1712957480959,-616.87783834,0.00049315,120]
[322349322,1712957480968,-358.66065139,0.00049315,120]
[322349323,1712957480978,-500.0,0.00049315,120]
[322349324,1712957480987,-151.0,0.00049315,14]
[322349325,1712957480997,-151.0,0.00049315,14]
[322349326,1712957481007,-704.996264,0.00049315,14]
[322349327,1712957481017,-253.937882,0.00049315,14]
[322349328,1712957481027,-500.0,0.00049315,120]
[322349329,1712957481036,-278.78816164,0.00049315,120]
[322349330,1712957481046,-704.996264,0.00049315,14]
[322349331,1712957481055,-784.68,0.00049315,120]
[322349332,1712957481066,-993.51,0.00049315,120]
[322349333,1712957481075,-245.21,0.00049315,120]
[322349334,1712957481085,-500.0,0.00049315,120]
[322349335,1712957481095,-176.971607,0.00049315,14]
[322349336,1712957481105,-500.0,0.00049315,120]
[322349337,1712957481115,-176.971607,0.00049315,14]
[322349338,1712957481125,-500.0,0.00049315,120]
[322349339,1712957481134,-7701.29,0.00049315,120]
[322349340,1712957481144,-500.0,0.00049315,120]
[322349341,1712957481154,-743.53,0.00049315,120]
[322349342,1712957481163,-663.59,0.00049315,120]
[322349343,1712957481173,-500.0,0.00049315,120]
[322349344,1712957481183,-500.0,0.00049315,120]
[322349345,1712957481193,-765.19,0.00049315,120]
[322349346,1712957481203,-1210.95,0.00049315,120]
[322349347,1712957481212,-1215.79,0.00049315,120]
[322349348,1712957481223,-2444.29,0.00049315,120]
[322349349,1712957481233,-500.0,0.00049315,120]
[322349350,1712957481243,-782.13,0.00049315,120]
[322349351,1712957481252,-862.16,0.00049315,120]
[322349352,1712957481262,-639.92,0.00049315,120]
[322349353,1712957481273,-500.0,0.00049315,120]
[322349354,1712957481282,-500.0,0.00049315,120]
[322349355,1712957481292,-517.0,0.00049315,120]
[322349356,1712957481302,-552.86,0.00049315,120]
[322349357,1712957481313,-3415.58,0.00049315,120]
[322349358,1712957481324,-500.0,0.00049315,120]
[322349359,1712957481334,-500.0,0.00049315,120]
[322349360,1712957481344,-888.25,0.00049315,120]
[322349361,1712957481355,-622.98,0.00049315,120]
[322349362,1712957481365,-7197.97,0.00049315,120]
[322349363,1712957481375,-973.32,0.00049315,120]
[322349364,1712957481386,-177.620649,0.00049315,14]
[322349365,1712957481395,-1090.18,0.00049315,120]
[322349366,1712957481406,-613.64,0.00049315,120]
[322349367,1712957481415,-893.69,0.00049315,120]
[322349368,1712957481425,-508.05,0.00049315,120]
[322349369,1712957481435,-500.0,0.00049315,120]
[322349370,1712957481444,-658.26,0.00049315,120]
[322349371,1712957481455,-704.21,0.00049315,120]
[322349372,1712957481465,-1095.309328,0.00049315,14]
[322349373,1712957481475,-896.94,0.00049315,120]
[322349374,1712957481485,-2564.38,0.00049315,120]
[322349375,1712957481495,-1095.309328,0.00049315,14]
[322349376,1712957481505,-500.0,0.00049315,120]
[322349377,1712957481515,-649.25,0.00049315,120]
[322349378,1712957481525,-151.0,0.00049315,14]
[322349379,1712957481535,-151.0,0.00049315,14]
[322349380,1712957481546,-1428.8,0.00049315,120]
[322349381,1712957481556,-701.3,0.00049315,120]
[322349382,1712957481568,-151.0,0.00049315,14]
[322349383,1712957481578,-1707.62,0.00049315,21]
[322349384,1712957481588,-500.0,0.00049315,120]
[322349385,1712957481598,-151.0,0.00049315,14]
[322349386,1712957481608,-151.0,0.00049315,7]
[322349387,1712957481618,-2220.22,0.00049315,120]
[322349388,1712957481628,-500.0,0.00049315,120]
[322349389,1712957481638,-500.0,0.00049315,120]
[322349390,1712957481648,-2569.48,0.00049315,120]
[322349391,1712957481659,-1323.83,0.00049315,120]
[322349392,1712957481670,-576.61,0.00049315,120]
[322349393,1712957481681,-667.54,0.00049315,120]
[322349394,1712957481691,-528.73,0.00049315,120]
[322349395,1712957481701,-1075.46,0.00049315,120]
[322349396,1712957481711,-151.0,0.00049315,14]
[322349397,1712957481721,-500.0,0.00049315,120]
[322349398,1712957481731,-661.11,0.00049315,120]
[322349399,1712957481741,-500.0,0.00049315,120]
[322349400,1712957481753,-47.80109664,0.00049315,120]
[322349401,1712957482070,-1814.74,0.00041995,2]
[322349402,1712957482080,-376.56,0.00041995,2]
[322349403,1712957482089,-418.16,0.00042132,2]
[322349404,1712957482099,-405.36504908,0.00042869,2]
[322349405,1712957482109,-195.51039237,0.00046575,31]
[322349406,1712957482166,-45.80981903,0.00046575,31]
[322349407,1712957482176,-500.0,0.00046575,31]
[322349408,1712957482186,-500.0,0.00046575,31]
[322349409,1712957482195,-500.0,0.00046575,31]
[322349410,1712957482205,-500.0,0.00046575,31]
[322349411,1712957482214,-150.0,0.000466,2]
[322349412,1712957482224,-150.0,0.000466,2]
[322349413,1712957482233,-378.83,0.000466,2]
[322349414,1712957482243,-150.0,0.000466,2]
[322349415,1712957482252,-150.0,0.000466,2]
[322349416,1712957482262,-520.86,0.000466,2]
[322349417,1712957482271,-150.0,0.000466,2]
[322349418,1712957482281,-150.0,0.000466,2]
[322349419,1712957482292,-520.86,0.000466,2]
[322349420,1712957482303,-500.0,0.00046849,31]
[322349421,1712957482313,-500.0,0.00046849,31]
[322349422,1712957482325,-500.0,0.00046849,31]
[322349423,1712957482334,-500.0,0.00046849,31]
[322349424,1712957482344,-1226.0,0.00046921,7]